[Event "13th Leiden Crown Group 2019"]
[Site "Leiden"]
[Date "2019.07.21"]
[Round "9.2"]
[White "Stefansson, Hannes"]
[Black "Schekachikhin, Maksim"]
[Result "0-1"]
[ECO "B12"]
[WhiteElo "2562"]
[BlackElo "2415"]
[Annotator "ChessBase"]
[PlyCount "46"]
[EventDate "2019.07.08"]
[EventType "tourn"]
[EventCountry "NED"]
[SourceTitle "playchess.com"]
[Source "ChessBase"]
[SourceQuality "1"]
[TimeControl "40/5400+30:1800+30"]

1. e4 {[%emt 0:00:00]} c6 {[%emt 0:00:00]} 2. d4 {[%emt 0:00:00]} d5 {[%emt 0:00:00]} 3. e5 {[%emt 0:00:15]} Bf5 {[%emt 0:00:08]} 4. Nf3 {[%emt 0:00:17]} e6 {[%emt 0:00:12]} 5. Be2 {[%emt 0:00:19]} Ne7 {[%emt 0:01:28]} 6. O-O {[%emt 0:00:25]} c5 {[%emt 0:02:40]} 7. c4 {[%emt 0:08:02]} Nbc6 {[%emt 0:00:33]} 8. dxc5 {[%emt 0:05:09]} d4 {[%emt 0:01:26]} 9. Qa4 {[%emt 0:04:51]} Ng6 {[%emt 0:07:09]} 10. Rd1 {[%emt 0:06:47]} d3 {[%emt 0:03:46]} 11. Be3 {[%emt 0:03:43]} Be7 {[%emt 0:22:11]} 12. Nc3 {[%emt 0:19:43]} O-O {[%emt 0:01:50]} 13. h3 {[%emt 0:05:07]} Ngxe5 {[%emt 0:07:32]} 14. Nxe5 {[%emt 0:00:18]} Nxe5 {[%emt 0:00:08]} 15. Bf4 {[%emt 0:09:45]} Nd7 {[%emt 0:17:21]} 16. b4 {[%emt 0:00:49]} Bf6 {[%emt 0:08:32]} 17. Bxd3 {[%emt 0:00:23]} Bxc3 {[%emt 0:08:13]} 18. Rac1 {[%emt 0:00:06]} Bb2 {[%emt 0:04:46]} 19. Bxf5 {[%emt 0:07:49]} Bxc1 {[%emt 0:00:09]} 20. Rxd7 {[%emt 0:02:19]} Qf6 {[%emt 0:03:46]} 21. Bxh7+ {[%emt 0:00:59]} Kxh7 {[%emt 0:00:04]} 22. Qc2+ {[%emt 0:00:39]} Qf5 {[%emt 0:01:03]} 23. Qxc1 {[%emt 0:00:19]} e5 {[%emt 0:00:11]} 0-1

[Event "13th Leiden Crown Group 2019"]
[Site "Leiden"]
[Date "2019.07.21"]
[Round "9.3"]
[White "Das, Arghyadip"]
[Black "Pruijssers, Roeland"]
[Result "1/2-1/2"]
[ECO "A07"]
[WhiteElo "2439"]
[BlackElo "2534"]
[Annotator "ChessBase"]
[PlyCount "38"]
[EventDate "2019.07.08"]
[EventType "tourn"]
[EventCountry "NED"]
[SourceTitle "playchess.com"]
[Source "ChessBase"]
[SourceQuality "1"]
[TimeControl "40/5400+30:1800+30"]

1. Nf3 {[%emt 0:00:00]} Nf6 {[%emt 0:01:32]} 2. g3 {[%emt 0:00:00]} d5 {[%emt 0:01:34]} 3. Bg2 {[%emt 0:00:00]} c6 {[%emt 0:01:00]} 4. O-O {[%emt 0:00:10]} Bg4 {[%emt 0:00:55]} 5. d3 {[%emt 0:00:12]} e6 {[%emt 0:00:15]} 6. h3 {[%emt 0:01:26]} Bh5 {[%emt 0:02:39]} 7. Qe1 {[%emt 0:00:05]} Nbd7 {[%emt 0:11:01]} 8. Nh4 {[%emt 0:00:49]} Qb6 {[%emt 0:04:32]} 9. a4 {[%emt 0:15:01]} Bc5 {[%emt 0:03:57]} 10. Kh1 {[%emt 0:12:13]} a5 {[%emt 0:15:12]} 11. f4 {[%emt 0:16:16]} Be3 {[%emt 0:10:26]} 12. Bxe3 {[%emt 0:04:48]} Qxe3 {[%emt 0:00:07]} 13. g4 {[%emt 0:02:36]} Bg6 {[%emt 0:00:16]} 14. Qf2 {[%emt 0:02:06]} Qxf2 {[%emt 0:00:48]} 15. Rxf2 {[%emt 0:00:00]} Nc5 {[%emt 0:00:16]} 16. Nd2 {[%emt 0:04:41]} Ke7 {[%emt 0:14:14]} 17. Ndf3 {[%emt 0:08:07]} Nfd7 {[%emt 0:07:02]} 18. Nd4 {[%emt 0:01:03]} f6 {[%emt 0:01:09]} 19. f5 {[%emt 0:03:40]} Bf7 {[%emt 0:00:26]} 1/2-1/2

[Event "13th Leiden Crown Group 2019"]
[Site "Leiden"]
[Date "2019.07.21"]
[Round "9.4"]
[White "Van der Wiel, John T.H."]
[Black "Nikolic, Predrag"]
[Result "1/2-1/2"]
[ECO "C03"]
[WhiteElo "2380"]
[BlackElo "2574"]
[Annotator "ChessBase"]
[PlyCount "27"]
[EventDate "2019.07.08"]
[EventType "tourn"]
[EventCountry "NED"]
[SourceTitle "playchess.com"]
[Source "ChessBase"]
[SourceQuality "1"]
[TimeControl "40/5400+30:1800+30"]

1. e4 {[%emt 0:00:00]} e6 {[%emt 0:00:00]} 2. d4 {[%emt 0:00:00]} d5 {[%emt 0:00:00]} 3. Nd2 {[%emt 0:00:00]} a6 {[%emt 0:00:00]} 4. Ngf3 {[%emt 0:00:51]} Nf6 {[%emt 0:01:44]} 5. exd5 {[%emt 0:12:44]} exd5 {[%emt 0:00:21]} 6. Bd3 {[%emt 0:00:07]} Qe7+ {[%emt 0:01:38]} 7. Be2 {[%emt 0:01:34]} Nc6 {[%emt 0:03:22]} 8. O-O {[%emt 0:02:08]} Be6 {[%emt 0:00:04]} 9. c3 {[%emt 0:01:12]} h6 {[%emt 0:04:57]} 10. Re1 {[%emt 0:01:47]} Qd7 {[%emt 0:09:36]} 11. Bd3 {[%emt 0:07:40]} Be7 {[%emt 0:03:58]} 12. Ne5 {[%emt 0:01:22]} Nxe5 {[%emt 0:02:03]} 13. dxe5 {[%emt 0:00:22]} Ng8 {[%emt 0:05:07]} 14. Nf3 {[%emt 0:06:16]} 1/2-1/2

[Event "13th Leiden Crown Group 2019"]
[Site "Leiden"]
[Date "2019.07.21"]
[Round "9.5"]
[White "Lalith Babu M R"]
[Black "Pijpers, Arthur"]
[Result "1-0"]
[ECO "E90"]
[WhiteElo "2580"]
[BlackElo "2474"]
[Annotator "ChessBase"]
[PlyCount "49"]
[EventDate "2019.07.08"]
[EventType "tourn"]
[EventCountry "NED"]
[SourceTitle "playchess.com"]
[Source "ChessBase"]
[SourceQuality "1"]
[TimeControl "40/5400+30:1800+30"]

1. c4 {[%emt 0:00:00]} Nf6 {[%emt 0:00:00]} 2. Nf3 {[%emt 0:00:00]} g6 {[%emt 0:00:06]} 3. Nc3 {[%emt 0:00:25]} Bg7 {[%emt 0:00:05]} 4. e4 {[%emt 0:00:24]} d6 {[%emt 0:00:05]} 5. d4 {[%emt 0:00:05]} O-O {[%emt 0:00:05]} 6. h3 {[%emt 0:00:04]} e5 {[%emt 0:00:05]} 7. d5 {[%emt 0:00:05]} Nh5 {[%emt 0:00:04]} 8. g3 {[%emt 0:00:15]} f5 {[%emt 0:00:05]} 9. exf5 {[%emt 0:00:10]} gxf5 {[%emt 0:00:04]} 10. Nh4 {[%emt 0:00:10]} Nf4 {[%emt 0:00:39]} 11. gxf4 {[%emt 0:04:08]} Qxh4 {[%emt 0:00:14]} 12. Rg1 {[%emt 0:00:03]} Kh8 {[%emt 0:27:05]} 13. fxe5 {[%emt 0:02:49]} Bxe5 {[%emt 0:00:24]} 14. Bg5 {[%emt 0:01:13]} Qd4 {[%emt 0:00:07]} 15. Qxd4 {[%emt 0:00:54]} Bxd4 {[%emt 0:00:03]} 16. Nb5 {[%emt 0:00:04]} Bb6 {[%emt 0:01:05]} 17. c5 {[%emt 0:04:28]} dxc5 {[%emt 0:21:50]} 18. Bf4 {[%emt 0:01:53]} Ba5+ {[%emt 0:10:50]} 19. b4 {[%emt 0:04:08]} Bxb4+ {[%emt 0:00:06]} 20. Kd1 {[%emt 0:00:09]} Re8 {[%emt 0:03:19]} 21. Nxc7 {[%emt 0:01:38]} Re4 {[%emt 0:00:06]} 22. Bh6 {[%emt 0:04:37]} Bc3 {[%emt 0:06:01]} 23. Rc1 {[%emt 0:00:13]} Be5 {[%emt 0:00:26]} 24. Nxa8 {[%emt 0:00:25]} b6 {[%emt 0:04:19]} 25. Rc4 {[%emt 0:00:29]} 1-0